Workbook

Sheet Sheet3
A4: OPS/OPT Obrigações Benfica SAD 2024-2027 | G4: TANB | H4: 5,10% | J4: Data Simulação: | K4: =+TODAY() -> 2024-04-03
G5: Prazo | H5: 3 anos
B7: Montante a investir | F7: 2500 | H7: (Introduza o montante do investimento)
B9: TANB | F9: 0.051
B11: TIR Líquida de Impostos e Comissões | F11: =XIRR(BG57:DG57,BG45:DG45) -> 0.03476245105
B13: Juros Líquidos de Impostos e Comissões | F13: =+SUM(E57:R57,E72:R72,E87:R87,E102:R102) -> 259.10258 | AD13: Sim | AE13: Internet | AG13: Continente
AD14: Não | AE14: Balcão/Telefone | AG14: Madeira
B15: O Cliente já paga Comissão de Serviço de Bolsa ? | F15: 1 | H15: (Escolha a opção correta) | AG15: Açores
B17: O Cliente tem Notas de Lançamento digitais? | F17: 1 | H17: (Escolha a opção correta)
B19: Canal de Subscrição | F19: 1 | H19: (Escolha a opção correta)
B21: Regime Fiscal | F21: 1 | H21: (Escolha a opção correta)
B23: Rubricas | D23: Preçário | E23: Cash-Flows Totais
B24: Comissão Serviço Bolsa ** | D24: =+IF($F$15=1,0,IF($F$19=1,3,3)) -> 0 | E24: =+SUM(E46:R46,E61:R61,E76:R76,E91:R91) -> 0
B25: Comissão de Subscrição* | D25: =IF($F$19=1,6.5,IF(F7<2666.667,12,IF(F7<250000,0.45%*F7,0.325%*F7))) -> 6.5 | E25: =+SUM(E48:R48,E63:R63,E78:R78,E93:R93) -> -6.5
B26: Imposto do Selo | D26: 0.04 | E26: -0.26
B27: Pagamento de Juros Bruto | D27: - | E27: 382.5
B28: IRS | D28: =+IF($F$21=1, 28%, IF($F$21=2, 28%, IF($F$21=3,19.6%,17.5%))) -> 0.28 | E28: -107.1
B29: Comissão Rendimentos ** | D29: 0.01 | E29: -2.754
B30: Comissão Reembolso ** | D30: 0.002 | E30: -5
B31: Portes | D31: =+IF(OR($F$17=2,$F$21=2,$F$21=4),0.4,0) -> 0 | E31: 0
B32: Despesas Expediente** | D32: =+IF(OR($F$17=2,$F$21=2,$F$21=4),1.05,0) -> 0 | E32: 0
B33: IVA | D33: =+IF($F$21=1, 23%, IF($F$21=2, 22%, IF($F$21=3,16%,17.5%))) -> 0.23 | E33: -1.78342
B34: TOTAL | E34: =+SUM(E24:E33) -> 259.10258
B35: * Acresce IS
B36: ** Acresce IVA
B38: Disclamer: Os valores constantes da presente simulação correspondem à taxa interna de rentabilidade (TIR) para um investimento na OPS/OPT Benfica SAD 2024-2027, ao Preço de Emissão, assumindo que as mesmas são detidas por um investidor residente em território português, que serão mantidas até ao vencimento e reembolsadas na maturidade a 100% do valor nominal e que os cupões recebidos são reinvestidos a uma taxa de juro equivalente à TIR obtida. A Oferta é uma oferta pública de subscrição em Portugal e destina-se a investidores indeterminados, ou seja, ao público em geral, desde que sejam pessoas residentes ou com estabelecimento em Portugal. A Oferta não constitui uma oferta ou promoção de venda, compra ou subscrição de quaisquer títulos, particularmente no que respeita a qualquer pessoa a quem estejam legalmente vedadas essas operações, ou em qualquer jurisdição onde seja considerada ilegal a respetiva venda, compra ou subscrição das Obrigações, designadamente os Estados Unidos da América, a Área Económica Europeia (incluindo Reino Unido e Holanda), Austrália, Canadá, África do Sul e o Japão. Em particular as Obrigações não foram nem serão registadas ao abrigo do US Securities Act de 1933 ou de qualquer outra legislação sobre valores mobiliários aplicável nos Estados Unidos da América e não podem ser, direta ou indiretamente, promovidas ou vendidas nos Estados Unidos da América, ou em qualquer dos seus territórios e possessões ou áreas que se encontrem sujeitas a essa jurisdição, ou a uma “US Person” ou em seu benefício, conforme disposto na Rule 902(k), Regulation S do US Securities Act de 1933.
B42: DETALHES
E44: 2024 | BG44: 2024 | BR44: 2025 | CF44: 2026 | CT44: 2027
B45: Preçário | H45: 2024-04-24 | I45: 2024-04-30 | J45: 2024-05-31 | K45: 2024-06-28 | L45: 2024-07-31 | M45: 2024-08-30 | N45: 2024-09-30 | O45: 2024-10-24 | P45: 2024-10-31 | Q45: 2024-11-29 | R45: 2024-12-31 | BD45: Preçário | BG45: 2024-04-24 | BH45: 2024-04-30 | BI45: 2024-05-31 | BJ45: 2024-06-28 | BK45: 2024-07-31 | BL45: 2024-08-30 | BM45: 2024-09-30 | BN45: 2024-10-24 | BO45: 2024-10-31 | BP45: 2024-11-29 | BQ45: 2024-12-31 | BR45: 2025-01-31 | BS45: 2025-02-28 | BT45: 2025-03-31 | BU45: 2025-04-24 | BV45: 2025-04-30 | BW45: 2025-05-30 | BX45: 2025-06-30 | BY45: 2025-07-31 | BZ45: 2025-08-29 | CA45: 2025-09-30 | CB45: 2025-10-24 | CC45: 2025-10-31 | CD45: 2025-11-28 | CE45: 2025-12-31 | CF45: 2026-01-30 | CG45: 2026-02-27 | CH45: 2026-03-31 | CI45: 2026-04-24 | CJ45: 2026-04-30 | CK45: 2026-05-29 | CL45: 2026-06-30 | CM45: 2026-07-31 | CN45: 2026-08-31 | CO45: 2026-09-30 | CP45: 2026-10-23 | CQ45: 2026-10-30 | CR45: 2026-11-30 | CS45: 2026-12-31 | CT45: 2027-01-29 | CU45: 2027-02-26 | CV45: 2027-03-31 | CW45: 2027-04-26
B46: Comissão Serviço Bolsa ** | D46: =+IF($F$15=1,0,IF($F$19=1,3,3)) -> 0 | I46: =-$D$46 -> 0 | J46: 0 | K46: 0 | L46: 0 | M46: 0 | N46: 0 | P46: =-$D$46 -> 0 | Q46: =-$D$46 -> 0 | R46: =-$D$46 -> 0 | BD46: Comissão Guarda Títulos ** | BF46: =+IF($F$15=1,0,IF($F$19=1,3,3)) -> 0 | BH46: =-$D$46 -> 0 | BI46: 0 | BJ46: 0 | BK46: 0 | BL46: 0 | BM46: 0 | BO46: =-$D$46 -> 0 | BP46: 0 | BQ46: 0 | BR46: 0 | BS46: 0 | BT46: 0 | BV46: =-$D$46 -> 0 | BW46: 0 | BX46: 0 | BY46: 0 | BZ46: 0 | CA46: 0 | CC46: =-$D$46 -> 0 | CD46: 0 | CE46: 0 | CF46: 0 | CG46: 0 | CH46: 0 | CJ46: =-$D$46 -> 0 | CK46: 0 | CL46: 0 | CM46: 0 | CN46: 0 | CO46: 0 | CQ46: =-$D$46 -> 0 | CR46: 0 | CS46: 0 | CT46: 0 | CU46: 0 | CV46: 0
B47: Investimento | D47: - | H47: =-F7 -> -2500 | O47: =-R7 -> 0 | BD47: Investimento | BF47: - | BG47: =-F7 -> -2500 | BN47: =-BQ7 -> 0 | CW47: =F7 -> 2500
B48: Comissão de Subscrição** | D48: =D25 -> 6.5 | H48: =-D48 -> -6.5 | BD48: Comissão de Subscrição** | BF48: =BF25 -> 0 | BG48: =-D48 -> -6.5
B49: Imposto do Selo | D49: 0.04 | H49: =+H48*$D$49 -> -0.26 | BD49: Imposto do Selo | BF49: 0.04 | BG49: =+BG48*$D$49 -> -0.26
B50: Pagamento de Juros Bruto | D50: - | O50: =+$F$7*$F$9*((6*30)/360) -> 63.75 | BD50: Pagamento de Juros Bruto | BF50: - | BN50: =+$F$7*$F$9*((6*30)/360) -> 63.75 | BU50: =+$F$7*$F$9*((6*30)/360) -> 63.75 | CB50: =+$F$7*$F$9*((6*30)/360) -> 63.75 | CI50: =+$F$7*$F$9*((6*30)/360) -> 63.75 | CP50: =+$F$7*$F$9*((6*30)/360) -> 63.75 | CW50: =+$F$7*$F$9*((6*30)/360) -> 63.75
B51: IRS | D51: =+IF($F$21=1, 28%, IF($F$21=2, 28%, IF($F$21=3,19.6%,17.5%))) -> 0.28 | O51: =+-O50*$D$51 -> -17.85 | BD51: IRS | BF51: =+IF($F$21=1, 28%, IF($F$21=2, 28%, IF($F$21=3,19.6%,17.5%))) -> 0.28 | BN51: =+-BN50*$D$51 -> -17.85 | BU51: =+-BU50*$D$51 -> -17.85 | CB51: =+-CB50*$D$51 -> -17.85 | CI51: =+-CI50*$D$51 -> -17.85 | CP51: =+-CP50*$D$51 -> -17.85 | CW51: =+-CW50*$D$51 -> -17.85
B52: Comissão Rendimentos ** | D52: 0.01 | O52: =-((O50+O51)*$D$52) -> -0.459 | BD52: Comissão Rendimentos ** | BF52: 0.01 | BN52: =-((BN50+BN51)*$D$52) -> -0.459 | BU52: =-((BU50+BU51)*$D$52) -> -0.459 | CB52: =-((CB50+CB51)*$D$52) -> -0.459 | CI52: =-((CI50+CI51)*$D$52) -> -0.459 | CP52: =-((CP50+CP51)*$D$52) -> -0.459 | CW52: =-((CW50+CW51)*$D$52) -> -0.459
B53: Comissão Reembolso ** | D53: 0.002 | BD53: Comissão Reembolso ** | BF53: 0.002 | CW53: =-$D$53*$F$7 -> -5
B54: Portes | D54: =+IF($F$17=1,0,0.4) -> 0 | H54: =+IF($F$17=1,0,IF(AND($F$15=2,OR($F$21=2,$F$21=4)),-$D$54,IF(H$46="",-$D$54,0))) -> 0 | O54: =+IF($F$17=1,0,IF(AND($F$15=2,OR($F$21=2,$F$21=4)),-$D$54,IF(O$46="",-$D$54,0))) -> 0 | BD54: Portes | BF54: =+IF($F$17=1,0,0.4) -> 0 | BG54: =+IF($F$17=1,0,IF(AND($F$15=2,OR($F$21=2,$F$21=4)),-$D$54,IF(BG$46="",-$D$54,0))) -> 0 | BN54: =+IF($F$17=1,0,IF(AND($F$15=2,OR($F$21=2,$F$21=4)),-$D$54,IF(BN$46="",-$D$54,0))) -> 0 | BU54: =+IF($F$17=1,0,IF(AND($F$15=2,OR($F$21=2,$F$21=4)),-$D$54,IF(BW$45="",-$D$54,0))) -> 0 | CB54: =+IF($F$17=1,0,IF(AND($F$15=2,OR($F$21=2,$F$21=4)),-$D$54,IF(CB$61="",-$D$54,0))) -> 0 | CI54: =+IF($F$17=1,0,IF(AND($F$15=2,OR($F$21=2,$F$21=4)),-$D$54,IF(CK$46="",-$D$54,0))) -> 0 | CP54: =+IF($F$17=1,0,IF(AND($F$15=2,OR($F$21=2,$F$21=4)),-$D$54,IF(CP$61="",-$D$54,0))) -> 0 | CW54: =+IF($F$17=1,0,IF(AND($F$15=2,OR($F$21=2,$F$21=4)),-$D$54,IF(CW$91="",-$D$54,0)))*2 -> 0
B55: Despesas Expediente** | D55: =+IF($F$17=1,0,1.05) -> 0 | H55: =+IF($F$17=1,0,IF(AND($F$15=2,OR($F$21=2,$F$21=4)),-$D$55,IF(H$46="",-$D$55,0))) -> 0 | O55: =+IF($F$17=1,0,IF(AND($F$15=2,OR($F$21=2,$F$21=4)),-$D$55,IF(O$46="",-$D$55,0))) -> 0 | BD55: Despesas Expediente** | BF55: =+IF($F$17=1,0,1.05) -> 0 | BG55: =+IF($F$17=1,0,IF(AND($F$15=2,OR($F$21=2,$F$21=4)),-$D$55,IF(BG$46="",-$D$55,0))) -> 0 | BN55: =+IF($F$17=1,0,IF(AND($F$15=2,OR($F$21=2,$F$21=4)),-$D$55,IF(BN$46="",-$D$55,0))) -> 0 | BU55: =+IF($F$17=1,0,IF(AND($F$15=2,OR($F$21=2,$F$21=4)),-$D$55,IF(BW$45="",-$D$55,0))) -> 0 | CB55: =+IF($F$17=1,0,IF(AND($F$15=2,OR($F$21=2,$F$21=4)),-$D$55,IF(CB$61="",-$D$55,0))) -> 0 | CI55: =+IF($F$17=1,0,IF(AND($F$15=2,OR($F$21=2,$F$21=4)),-$D$55,IF(CK$46="",-$D$55,0))) -> 0 | CP55: =+IF($F$17=1,0,IF(AND($F$15=2,OR($F$21=2,$F$21=4)),-$D$55,IF(CP$61="",-$D$55,0))) -> 0 | CW55: =+IF($F$17=1,0,IF(AND($F$15=2,OR($F$21=2,$F$21=4)),-$D$55,IF(CW$91="",-$D$55,0)))*2 -> 0
B56: IVA | D56: =+IF($F$21=1, 23%, IF($F$21=2, 22%, IF($F$21=3,16%,17.5%))) -> 0.23 | H56: =+(H46+H52+H53+H55)*$D$56 -> 0 | I56: 0 | J56: 0 | K56: 0 | L56: 0 | M56: 0 | N56: 0 | O56: -0.10557 | P56: 0 | Q56: 0 | R56: 0 | BD56: IVA | BF56: =+IF($F$21=1, 23%, IF($F$21=2, 22%, IF($F$21=3,16%,17.5%))) -> 0.23 | BG56: =+(BG46+BG52+BG53+BG55)*$D$56 -> 0 | BH56: =+(BH46+BH52+BH53+BH55)*$D$56 -> 0 | BI56: 0 | BJ56: 0 | BK56: 0 | BL56: 0 | BM56: 0 | BN56: -0.10557 | BO56: 0 | BP56: 0 | BQ56: 0 | BR56: 0 | BS56: 0 | BT56: 0 | BU56: -0.10557 | BV56: 0 | BW56: 0 | BX56: 0 | BY56: 0 | BZ56: 0 | CA56: 0 | CB56: -0.10557 | CC56: 0 | CD56: 0 | CE56: 0 | CF56: 0 | CG56: 0 | CH56: 0 | CI56: -0.10557 | CJ56: 0 | CK56: 0 | CL56: 0 | CM56: 0 | CN56: 0 | CO56: 0 | CP56: -0.10557 | CQ56: 0 | CR56: 0 | CS56: 0 | CT56: 0 | CU56: 0 | CV56: 0 | CW56: -1.25557
B57: Cash-Flows | H57: =+SUM(H46:H56) -> -2506.76 | I57: 0 | J57: 0 | K57: 0 | L57: 0 | M57: 0 | N57: 0 | O57: 45.33543 | P57: 0 | Q57: 0 | R57: 0 | BD57: Cash-Flows | BG57: =+SUM(BG46:BG56) -> -2506.76 | BH57: 0 | BI57: 0 | BJ57: 0 | BK57: 0 | BL57: 0 | BM57: 0 | BN57: 45.33543 | BO57: 0 | BP57: 0 | BQ57: 0 | BR57: 0 | BS57: 0 | BT57: 0 | BU57: 45.33543 | BV57: 0 | BW57: 0 | BX57: 0 | BY57: 0 | BZ57: 0 | CA57: 0 | CB57: 45.33543 | CC57: 0 | CD57: 0 | CE57: 0 | CF57: 0 | CG57: 0 | CH57: 0 | CI57: 45.33543 | CJ57: 0 | CK57: 0 | CL57: 0 | CM57: 0 | CN57: 0 | CO57: 0 | CP57: 45.33543 | CQ57: 0 | CR57: 0 | CS57: 0 | CT57: 0 | CU57: 0 | CV57: 0 | CW57: 2539.18543
E59: 2025
B60: Preçário | E60: 2025-01-31 | F60: 2025-02-28 | G60: 2025-03-31 | H60: 2025-04-24 | I60: 2025-04-30 | J60: 2025-05-30 | K60: 2025-06-30 | L60: 2025-07-31 | M60: 2025-08-29 | N60: 2025-09-30 | O60: 2025-10-24 | P60: 2025-10-31 | Q60: 2025-11-28 | R60: 2025-12-31
B61: Comissão Serviço Bolsa ** | D61: =+IF($F$15=1,0,IF($F$19=1,3,3)) -> 0 | E61: =-$D$46 -> 0 | F61: =-$D$46 -> 0 | G61: =-$D$46 -> 0 | I61: =-$D$46 -> 0 | J61: 0 | K61: 0 | L61: 0 | M61: 0 | N61: 0 | P61: =-$D$46 -> 0 | Q61: =-$D$46 -> 0 | R61: =-$D$46 -> 0
B62: Investimento | D62: -
B63: Comissão de Subscrição** | D63: =D25 -> 6.5
B64: Imposto do Selo | D64: 0.04
B65: Pagamento de Juros Bruto | D65: - | H65: =+$F$7*$F$9*((6*30)/360) -> 63.75 | O65: =+$F$7*$F$9*((6*30)/360) -> 63.75
B66: IRS | D66: =+IF($F$21=1, 28%, IF($F$21=2, 28%, IF($F$21=3,19.6%,17.5%))) -> 0.28 | H66: =+-H65*$D$51 -> -17.85 | O66: =+-O65*$D$51 -> -17.85
B67: Comissão Rendimentos ** | D67: 0.01 | H67: =-((H65+H66)*$D$52) -> -0.459 | O67: =-((O65+O66)*$D$52) -> -0.459
B68: Comissão Reembolso ** | D68: 0.002
B69: Portes | D69: =+IF($F$17=1,0,0.4) -> 0 | H69: =+IF($F$17=1,0,IF(AND($F$15=2,OR($F$21=2,$F$21=4)),-$D$54,IF(H$46="",-$D$54,0))) -> 0 | O69: =+IF($F$17=1,0,IF(AND($F$15=2,OR($F$21=2,$F$21=4)),-$D$54,IF(O$61="",-$D$54,0))) -> 0
B70: Despesas Expediente** | D70: =+IF($F$17=1,0,1.05) -> 0 | H70: =+IF($F$17=1,0,IF(AND($F$15=2,OR($F$21=2,$F$21=4)),-$D$55,IF(H$46="",-$D$55,0))) -> 0 | O70: =+IF($F$17=1,0,IF(AND($F$15=2,OR($F$21=2,$F$21=4)),-$D$55,IF(O$61="",-$D$55,0))) -> 0
B71: IVA | D71: =+IF($F$21=1, 23%, IF($F$21=2, 22%, IF($F$21=3,16%,17.5%))) -> 0.23 | E71: =+(E61+E67+E68+E70)*$D$56 -> 0 | F71: 0 | G71: 0 | H71: -0.10557 | I71: 0 | J71: 0 | K71: 0 | L71: 0 | M71: 0 | N71: 0 | O71: -0.10557 | P71: 0 | Q71: 0 | R71: 0
B72: Cash-Flows | E72: =+SUM(E61:E71) -> 0 | F72: 0 | G72: 0 | H72: 45.33543 | I72: 0 | J72: 0 | K72: 0 | L72: 0 | M72: 0 | N72: 0 | O72: 45.33543 | P72: 0 | Q72: 0 | R72: =+SUM(R61:R71) -> 0
E74: 2026
B75: Preçário | E75: 2026-01-30 | F75: 2026-02-27 | G75: 2026-03-31 | H75: 2026-04-24 | I75: 2026-04-30 | J75: 2026-05-29 | K75: 2026-06-30 | L75: 2026-07-31 | M75: 2026-08-31 | N75: 2026-09-30 | O75: 2026-10-23 | P75: 2026-10-30 | Q75: 2026-11-30 | R75: 2026-12-31
B76: Comissão Serviço Bolsa ** | D76: =+IF($F$15=1,0,IF($F$19=1,3,3)) -> 0 | E76: =-$D$46 -> 0 | F76: =-$D$46 -> 0 | G76: =-$D$46 -> 0 | I76: =-$D$46 -> 0 | J76: 0 | K76: 0 | L76: 0 | M76: 0 | N76: 0 | P76: =-$D$46 -> 0 | Q76: =-$D$46 -> 0 | R76: =-$D$46 -> 0
B77: Investimento | D77: -
B78: Comissão de Subscrição** | D78: =D25 -> 6.5
B79: Imposto do Selo | D79: 0.04
B80: Pagamento de Juros Bruto | D80: - | H80: =+$F$7*$F$9*((6*30)/360) -> 63.75 | O80: =+$F$7*$F$9*((6*30)/360) -> 63.75
B81: IRS | D81: =+IF($F$21=1, 28%, IF($F$21=2, 28%, IF($F$21=3,19.6%,17.5%))) -> 0.28 | H81: =+-H80*$D$51 -> -17.85 | O81: =+-O80*$D$51 -> -17.85
B82: Comissão Rendimentos ** | D82: 0.01 | H82: =-((H80+H81)*$D$52) -> -0.459 | O82: =-((O80+O81)*$D$52) -> -0.459
B83: Comissão Reembolso ** | D83: 0.002
B84: Portes | D84: =+IF($F$17=1,0,0.4) -> 0 | H84: =+IF($F$17=1,0,IF(AND($F$15=2,OR($F$21=2,$F$21=4)),-$D$54,IF(H$46="",-$D$54,0))) -> 0 | O84: =+IF($F$17=1,0,IF(AND($F$15=2,OR($F$21=2,$F$21=4)),-$D$54,IF(O$61="",-$D$54,0))) -> 0
B85: Despesas Expediente** | D85: =+IF($F$17=1,0,1.05) -> 0 | H85: =+IF($F$17=1,0,IF(AND($F$15=2,OR($F$21=2,$F$21=4)),-$D$55,IF(H$46="",-$D$55,0))) -> 0 | O85: =+IF($F$17=1,0,IF(AND($F$15=2,OR($F$21=2,$F$21=4)),-$D$55,IF(O$61="",-$D$55,0))) -> 0
B86: IVA | D86: =+IF($F$21=1, 23%, IF($F$21=2, 22%, IF($F$21=3,16%,17.5%))) -> 0.23 | E86: =+(E76+E82+E83+E85)*$D$56 -> 0 | F86: 0 | G86: 0 | H86: -0.10557 | I86: 0 | J86: 0 | K86: 0 | L86: 0 | M86: 0 | N86: 0 | O86: -0.10557 | P86: 0 | Q86: 0 | R86: 0
B87: Cash-Flows | E87: =+SUM(E76:E86) -> 0 | F87: =+SUM(F76:F86) -> 0 | G87: 0 | H87: 45.33543 | I87: 0 | J87: 0 | K87: 0 | L87: 0 | M87: =+SUM(M76:M86) -> 0 | N87: =+SUM(N76:N86) -> 0 | O87: =+SUM(O76:O86) -> 45.33543 | P87: =+SUM(P76:P86) -> 0 | Q87: =+SUM(Q76:Q86) -> 0 | R87: =+SUM(R76:R86) -> 0
E89: 2027
B90: Preçário | E90: 2027-01-29 | F90: 2027-02-26 | G90: 2027-03-31 | H90: 2027-04-23
B91: Comissão Serviço Bolsa ** | D91: =+IF($F$15=1,0,IF($F$19=1,3,3)) -> 0 | E91: =-$D$46 -> 0 | F91: =-$D$46 -> 0 | G91: =-$D$46 -> 0
B92: Investimento | D92: - | H92: =F7 -> 2500
B93: Comissão de Subscrição** | D93: =D25 -> 6.5
B94: Imposto do Selo | D94: 0.04
B95: Pagamento de Juros Bruto | D95: - | H95: =+$F$7*$F$9*((6*30)/360) -> 63.75
B96: IRS | D96: =+IF($F$21=1, 28%, IF($F$21=2, 28%, IF($F$21=3,19.6%,17.5%))) -> 0.28 | H96: =+-H95*$D$51 -> -17.85
B97: Comissão Rendimentos ** | D97: 0.01 | H97: =-((H95+H96)*$D$52) -> -0.459
B98: Comissão Reembolso ** | D98: 0.002 | H98: =-$D$53*$F$7 -> -5
B99: Portes | D99: =+IF($F$17=1,0,0.4) -> 0 | H99: =+IF($F$17=1,0,IF(AND($F$15=2,OR($F$21=2,$F$21=4)),-$D$54,IF(H$91="",-$D$54,0)))*2 -> 0
B100: Despesas Expediente** | D100: =+IF($F$17=1,0,1.05) -> 0 | H100: =+IF($F$17=1,0,IF(AND($F$15=2,OR($F$21=2,$F$21=4)),-$D$55,IF(H$91="",-$D$55,0)))*2 -> 0
B101: IVA | D101: =+IF($F$21=1, 23%, IF($F$21=2, 22%, IF($F$21=3,16%,17.5%))) -> 0.23 | E101: =+(E91+E97+E98+E100)*$D$56 -> 0 | F101: =+(F91+F97+F98+F100)*$D$56 -> 0 | G101: =+(G91+G97+G98+G100)*$D$56 -> 0 | H101: =+(H91+H97+H98+H100)*$D$56 -> -1.25557
B102: Cash-Flows | E102: =+SUM(E91:E101) -> 0 | F102: =+SUM(F91:F101) -> 0 | G102: =+SUM(G91:G101) -> 0 | H102: =+SUM(H91:H101) -> 2539.18543
B103: * Acresce IS
B104: ** Acresce IVA
